fUSD/lending_fUSD_20250109
["ID","MTS","AMOUNT","RATE_DAILY","PERIOD"]
[348284381,1736433044871,-26444.65128512,0.0001,2]
[348284382,1736433044880,-67640.99178055,0.0001,2]
[348284383,1736433044894,-2014.19125812,0.0001,2]
[348284384,1736433044906,-1628.80903883,0.0001,2]
[348284385,1736433044917,-249247.67962464,0.0001,2]
[348284386,1736433044928,-6197.33498748,0.0001,2]
[348284387,1736433044939,-2287.62334426,0.0001,2]
[348284388,1736433044950,-820.81305855,0.0001,2]
[348284389,1736433044961,-3256.47842216,0.0001,2]
[348284397,1736433045138,-283.10203447,0.0001,2]
[348284399,1736433045149,-1300.12066523,0.0001,2]
[348284402,1736433045161,-9928.45805862,0.0001,2]
[348284404,1736433045172,-549.98699996,0.0001,2]
[348284445,1736433046413,-252.77790372,9.995e-05,2]
[348284448,1736433046425,-247.22209628,9.995e-05,2]
[348284449,1736433046434,-2337.17,9.996e-05,2]
[348284451,1736433046443,-3225.25381764,0.0001,2]
[348284453,1736433046458,-6064.0000005,0.0001,2]
[348284482,1736433046725,-500.0,9.995e-05,2]
[348284484,1736433046734,-295.86,9.995e-05,2]
[348284486,1736433046746,-204.14,9.995e-05,2]
[348284488,1736433046759,-751.79,9.996e-05,2]
[348284489,1736433046768,-17641.07200847,0.0001,2]
[348284490,1736433046779,-47386.32095257,0.0001,2]
[348284491,1736433046791,-10730.70180181,0.0001,2]
[348284492,1736433046806,-52328.76563707,0.0001,2]
[348284493,1736433046818,-3087.07355343,0.0001,2]
[348284494,1736433046831,-4858.11589993,0.0001,2]
[348284495,1736433079142,114.23469991,8.219e-05,2]
[348284496,1736433079165,504.33530009,8.219e-05,2]
[348284501,1736433971985,587.64,8.219e-05,2]
[348284527,1736434203667,838.0,8.219e-05,30]
[348284528,1736434203987,838.0,8.944e-05,30]
[348284529,1736434204336,838.0,9.67e-05,30]
[348284530,1736434204680,838.0,0.00010395,30]
[348284531,1736434205024,838.0,0.0001112,30]
[348284532,1736434205362,838.0,0.00011846,30]
[348284533,1736434205718,838.0,0.00012571,30]
[348284534,1736434206076,838.0,0.00013296,30]
[348284540,1736434233033,-250.0,8.541e-05,2]
[348284542,1736434233043,-250.0,8.547e-05,2]
[348284543,1736434233052,-504.03,8.882e-05,2]
[348284545,1736434233062,-300.0,8.961e-05,2]
[348284547,1736434233072,-12917.4936,8.962e-05,2]
[348284550,1736434233084,-7120.76008576,8.962e-05,2]
[348284551,1736434233095,-3861.74631424,8.962e-05,2]
[348284552,1736434233105,-150.0,9e-05,2]
[348284553,1736434233116,-150.0,9e-05,2]
[348284554,1736434233125,-150.0,9e-05,2]
[348284555,1736434233135,-150.0,9e-05,2]
[348284556,1736434233147,-150.0,9.019e-05,2]
[348284557,1736434233158,-150.0,9.037e-05,2]
[348284558,1736434233167,-150.0,9.048e-05,2]
[348284559,1736434233177,-150.0,9.056e-05,2]
[348284560,1736434233189,-150.0,9.074e-05,2]
[348284561,1736434233198,-150.0,9.093e-05,2]
[348284562,1736434233210,-150.0,9.095e-05,2]
[348284563,1736434233220,-150.0,9.111e-05,2]
[348284564,1736434233232,-150.0,9.13e-05,2]
[348284565,1736434233243,-150.0,9.143e-05,2]
[348284566,1736434233253,-150.0,9.148e-05,2]
[348284567,1736434233262,-150.0,9.167e-05,2]
[348284568,1736434233272,-150.0,9.185e-05,2]
[348284569,1736434233281,-150.0,9.19e-05,2]
[348284570,1736434233291,-150.0,9.2e-05,2]
[348284571,1736434233301,-150.0,9.2e-05,2]
[348284572,1736434233310,-150.0,9.204e-05,2]
[348284573,1736434233320,-150.0,9.222e-05,2]
[348284574,1736434233329,-150.0,9.238e-05,2]
[348284575,1736434233339,-150.0,9.241e-05,2]
[348284576,1736434233348,-150.0,9.259e-05,2]
[348284577,1736434233358,-150.0,9.278e-05,2]
[348284578,1736434233368,-150.0,9.286e-05,2]
[348284579,1736434233377,-150.0,9.296e-05,2]
[348284580,1736434233387,-150.0,9.315e-05,2]
[348284581,1736434233396,-150.0,9.333e-05,2]
[348284582,1736434233406,-150.0,9.333e-05,2]
[348284583,1736434233415,-150.0,9.352e-05,2]
[348284584,1736434233425,-150.0,9.37e-05,2]
[348284585,1736434233435,-150.0,9.381e-05,2]
[348284586,1736434233445,-150.0,9.389e-05,2]
[348284587,1736434233455,-150.0,9.4e-05,2]
[348284588,1736434233465,-150.0,9.4e-05,2]
[348284589,1736434233475,-150.0,9.407e-05,2]
[348284590,1736434233484,-150.0,9.426e-05,2]
[348284591,1736434233494,-150.0,9.429e-05,2]
[348284592,1736434233503,-150.0,9.444e-05,2]
[348284593,1736434233513,-982.83,9.46e-05,2]
[348284594,1736434233523,-1000.0,9.46e-05,2]
[348284595,1736434233533,-250.0,9.46e-05,2]
[348284597,1736434233542,-150.0,9.463e-05,2]
[348284599,1736434233552,-150.0,9.476e-05,2]
[348284601,1736434233561,-150.0,9.481e-05,2]
[348284603,1736434233570,-150.0,9.5e-05,2]
[348284605,1736434233580,-150.0,9.507e-05,2]
[348284607,1736434233589,-150.0,9.519e-05,2]
[348284609,1736434233599,-150.0,9.524e-05,2]
[348284611,1736434233608,-1569.87,9.536e-05,2]
[348284613,1736434233617,-150.0,9.537e-05,2]
[348284615,1736434233627,-150.0,9.556e-05,2]
[348284617,1736434233636,-150.0,9.571e-05,2]
[348284619,1736434233646,-150.0,9.574e-05,2]
[348284621,1736434233655,-1004.73726173,9.588e-05,2]
[348284623,1736434233665,-150.0,9.593e-05,2]
[348284625,1736434233674,-150.0,9.6e-05,2]
[348284627,1736434233684,-150.0,9.6e-05,2]
[348284629,1736434233693,-150.0,9.611e-05,2]
[348284631,1736434233703,-150.0,9.619e-05,2]
[348284633,1736434233714,-150.0,9.63e-05,2]
[348284635,1736434233723,-150.0,9.648e-05,2]
[348284636,1736434233733,-150.0,9.667e-05,2]
[348284660,1736434233950,-150.0,9.667e-05,2]
[348284662,1736434233963,-150.0,9.685e-05,2]
[348284664,1736434233973,-150.0,9.704e-05,2]
[348284666,1736434233982,-150.0,9.714e-05,2]
[348284668,1736434233992,-150.0,9.722e-05,2]
[348284670,1736434234003,-150.0,9.741e-05,2]
[348284673,1736434234014,-168.14,9.744e-05,2]
[348284674,1736434234023,-150.0,9.759e-05,2]
[348284677,1736434234033,-150.0,9.762e-05,2]
[348284679,1736434234043,-150.0,9.778e-05,2]
[348284681,1736434234052,-150.0,9.796e-05,2]
[348284683,1736434234062,-2626.8632,9.8e-05,2]
[348284685,1736434234072,-204.8118,9.8e-05,2]
[348284686,1736434234083,-150.0,9.8e-05,2]
[348284688,1736434234093,-150.0,9.8e-05,2]
[348284690,1736434234102,-523.8212,9.8e-05,2]
[348284692,1736434234112,-150.0,9.81e-05,2]
[348284694,1736434234122,-150.0,9.815e-05,2]
[348284697,1736434234132,-150.0,9.833e-05,2]
[348284699,1736434234142,-150.0,9.852e-05,2]
[348284701,1736434234156,-420.0,9.857e-05,2]
[348284702,1736434234165,-150.0,9.857e-05,2]
[348284704,1736434234175,-150.0,9.87e-05,2]
[348284706,1736434234184,-2786.4478,9.873e-05,2]
[348284709,1736434234195,-772.01,9.873e-05,2]
[348284710,1736434234206,-37045.4753,9.88e-05,2]
[348284713,1736434234216,-444.8916,9.88e-05,2]
[348284714,1736434234227,-1000.0,9.88e-05,2]
[348284716,1736434234237,-150.0,9.889e-05,2]
[348284718,1736434234246,-291.5271,9.895e-05,2]
[348284720,1736434234256,-42984.9136,9.896e-05,2]
[348284722,1736434234265,-23347.22864302,9.899e-05,2]
[348284724,1736434234275,-69300.7016,9.9e-05,2]
[348284726,1736434234284,-150.0,9.905e-05,2]
[348284728,1736434234294,-150.0,9.907e-05,2]
[348284730,1736434234304,-13050.5966767,9.91e-05,2]
[348284732,1736434234314,-150.0,9.926e-05,2]
[348284734,1736434234324,-150.0,9.944e-05,2]
[348284736,1736434234334,-150.0,9.952e-05,2]
[348284738,1736434234343,-150.0,9.963e-05,2]
[348284740,1736434234353,-759.49,9.972e-05,2]
[348284742,1736434234362,-1011.51,9.972e-05,2]
[348284744,1736434234371,-500.0,9.972e-05,2]
[348284746,1736434234381,-546.97,9.972e-05,2]
[348284748,1736434234390,-500.0,9.972e-05,2]
[348284750,1736434234399,-500.0,9.972e-05,2]
[348284752,1736434234408,-500.0,9.972e-05,2]
[348284754,1736434234418,-500.0,9.972e-05,2]
[348284756,1736434234428,-979.82327698,9.973e-05,2]
[348284758,1736434234438,-979.82327698,9.973e-05,2]
[348284760,1736434234447,-22673.0,9.973e-05,2]
[348284762,1736434234461,-801.0,9.973e-05,2]
[348284764,1736434234471,-2011.0,9.973e-05,2]
[348284766,1736434234481,-5212.5664,9.973e-05,2]
[348284768,1736434234491,-160.31041027,9.973e-05,2]
[348284770,1736434234500,-152.06814454,9.973e-05,2]
[348284772,1736434234510,-361.17050573,9.973e-05,2]
[348284774,1736434234520,-500.0,9.973e-05,2]
[348284776,1736434234529,-160.81352601,9.973e-05,2]
[348284778,1736434234538,-152.06890361,9.973e-05,2]
[348284780,1736434234548,-152.06890304,9.973e-05,2]
[348284782,1736434234558,-152.07115123,9.973e-05,2]
[348284784,1736434234567,-152.06890503,9.973e-05,2]
[348284786,1736434234576,-166.53099771,9.973e-05,2]
[348284788,1736434234586,-500.0,9.973e-05,2]
[348284790,1736434234595,-151.81652488,9.973e-05,2]
[348284792,1736434234606,-979.82327698,9.977e-05,2]
[348284794,1736434234615,-500.0,9.977e-05,2]
[348284796,1736434234625,-2338.65,9.977e-05,2]
[348284798,1736434234635,-3164.43,9.977e-05,2]
[348284800,1736434234644,-1875.01,9.977e-05,2]
[348284802,1736434234654,-638.24,9.977e-05,2]
[348284804,1736434234664,-1396.35,9.977e-05,2]
[348284806,1736434234673,-2806.46,9.977e-05,2]
[348284808,1736434234682,-500.0,9.977e-05,2]
[348284810,1736434234692,-500.0,9.977e-05,2]
[348284812,1736434234701,-784.3,9.977e-05,2]
[348284814,1736434234714,-500.0,9.977e-05,2]
[348284816,1736434234724,-500.0,9.977e-05,2]
[348284818,1736434234734,-1619.84,9.977e-05,2]
[348284820,1736434234743,-500.0,9.978e-05,2]
[348284822,1736434234752,-500.0,9.978e-05,2]
[348284824,1736434234762,-500.0,9.978e-05,2]
[348284826,1736434234771,-500.0,9.978e-05,2]
[348284828,1736434234780,-500.0,9.978e-05,2]
[348284830,1736434234790,-500.0,9.978e-05,2]
[348284832,1736434234799,-500.0,9.978e-05,2]
[348284834,1736434234808,-500.0,9.978e-05,2]
[348284835,1736434234818,-500.0,9.978e-05,2]
[348284838,1736434234827,-500.0,9.978e-05,2]
[348284840,1736434234837,-500.0,9.978e-05,2]
[348284841,1736434234846,-500.0,9.978e-05,2]
[348284843,1736434234856,-500.0,9.978e-05,2]
[348284846,1736434234865,-500.0,9.978e-05,2]
[348284848,1736434234875,-500.0,9.978e-05,2]
[348284850,1736434234885,-500.0,9.978e-05,2]
[348284851,1736434234894,-500.0,9.978e-05,2]
[348284854,1736434234903,-500.0,9.978e-05,2]
[348284855,1736434234913,-500.0,9.978e-05,2]
[348284857,1736434234922,-500.0,9.978e-05,2]
[348284859,1736434234932,-500.0,9.978e-05,2]
[348284861,1736434234941,-500.0,9.978e-05,2]
[348284863,1736434234951,-500.0,9.978e-05,2]
[348284865,1736434234963,-500.0,9.978e-05,2]
[348284868,1736434234973,-500.0,9.978e-05,2]
[348284869,1736434234983,-500.0,9.978e-05,2]
[348284872,1736434234994,-500.0,9.978e-05,2]
[348284873,1736434235004,-648.84278583,9.978e-05,2]
[348284876,1736434235013,-500.0,9.978e-05,2]
[348284877,1736434235024,-500.0,9.978e-05,2]
[348284879,1736434235034,-500.0,9.978e-05,2]
[348284881,1736434235044,-500.0,9.978e-05,2]
[348284884,1736434235054,-500.0,9.978e-05,2]
[348284886,1736434235063,-500.57443966,9.978e-05,2]
[348284888,1736434235074,-500.0,9.978e-05,2]
[348284890,1736434235084,-500.0,9.978e-05,2]
[348284892,1736434235093,-500.0,9.978e-05,2]
[348284894,1736434235103,-500.0,9.978e-05,2]
[348284895,1736434235113,-500.0,9.978e-05,2]
[348284897,1736434235122,-500.0,9.978e-05,2]
[348284899,1736434235132,-500.0,9.978e-05,2]
[348284901,1736434235141,-500.0,9.978e-05,2]
[348284903,1736434235155,-500.0,9.978e-05,2]
[348284905,1736434235165,-500.0,9.978e-05,2]
[348284907,1736434235174,-500.0,9.978e-05,2]
[348284909,1736434235184,-500.0,9.978e-05,2]
[348284911,1736434235195,-500.0,9.978e-05,2]
[348284913,1736434235205,-500.0,9.978e-05,2]
[348284915,1736434235214,-500.0,9.978e-05,2]
[348284917,1736434235227,-500.0,9.978e-05,2]
[348284919,1736434235238,-500.0,9.978e-05,2]
[348284921,1736434235247,-500.0,9.978e-05,2]
[348284923,1736434235256,-500.0,9.978e-05,2]
[348284925,1736434235266,-500.0,9.978e-05,2]
[348284927,1736434235275,-3535.91,9.978e-05,2]
[348284929,1736434235284,-500.0,9.978e-05,2]
[348284931,1736434235293,-1663.24,9.978e-05,2]
[348284933,1736434235304,-500.0,9.978e-05,2]
[348284935,1736434235314,-500.0,9.978e-05,2]
[348284937,1736434235323,-500.0,9.978e-05,2]
[348284939,1736434235332,-500.0,9.978e-05,2]
[348284941,1736434235341,-500.0,9.978e-05,2]
[348284943,1736434235350,-1177.28,9.978e-05,2]
[348284945,1736434235359,-500.0,9.978e-05,2]
[348284947,1736434235368,-500.0,9.978e-05,2]
[348284949,1736434235377,-500.0,9.978e-05,2]
[348284951,1736434235387,-500.0,9.978e-05,2]
[348284953,1736434235396,-500.0,9.978e-05,2]
[348284954,1736434235405,-500.0,9.978e-05,2]
[348284956,1736434235414,-500.0,9.978e-05,2]
[348284958,1736434235423,-1728.69,9.978e-05,2]
[348284960,1736434235432,-500.0,9.978e-05,2]
[348284962,1736434235441,-500.0,9.978e-05,2]
[348284964,1736434235450,-500.0,9.978e-05,2]
[348284966,1736434235460,-500.0,9.978e-05,2]
[348284968,1736434235470,-500.0,9.978e-05,2]
[348284970,1736434235480,-6542.09,9.978e-05,2]
[348284972,1736434235490,-500.0,9.978e-05,2]
[348284974,1736434235500,-500.0,9.978e-05,2]
[348284977,1736434235510,-500.0,9.978e-05,2]
[348284978,1736434235520,-434.59272903,9.978e-05,2]
[348284981,1736434235530,-500.0,9.978e-05,2]
[348284982,1736434235538,-500.0,9.978e-05,2]
[348284983,1736434235546,-500.0,9.978e-05,2]
[348284984,1736434235555,-500.0,9.978e-05,2]
[348284985,1736434235564,-500.0,9.978e-05,2]
[348284986,1736434235573,-500.0,9.978e-05,2]
[348284987,1736434235582,-500.0,9.978e-05,2]
[348284988,1736434235591,-500.0,9.978e-05,2]
[348284989,1736434235600,-500.0,9.978e-05,2]
[348284990,1736434235609,-500.0,9.978e-05,2]
[348284992,1736434235618,-556.21,9.978e-05,2]
[348284994,1736434235627,-500.0,9.978e-05,2]
[348284996,1736434235637,-500.0,9.978e-05,2]
[348284998,1736434235646,-500.0,9.978e-05,2]
[348285000,1736434235656,-500.0,9.978e-05,2]
[348285001,1736434235665,-500.0,9.978e-05,2]
[348285003,1736434235675,-500.0,9.978e-05,2]
[348285005,1736434235684,-500.0,9.978e-05,2]
[348285007,1736434235693,-500.0,9.978e-05,2]
[348285010,1736434235703,-500.0,9.978e-05,2]
[348285012,1736434235714,-500.0,9.978e-05,2]
[348285014,1736434235723,-611.43,9.978e-05,2]
[348285015,1736434235732,-500.0,9.978e-05,2]
[348285018,1736434235743,-500.0,9.978e-05,2]
[348285020,1736434235752,-500.0,9.978e-05,2]
[348285022,1736434235761,-1033.5,9.978e-05,2]
[348285023,1736434235771,-500.0,9.978e-05,2]
[348285025,1736434235780,-500.0,9.978e-05,2]
[348285027,1736434235790,-500.0,9.978e-05,2]
[348285029,1736434235798,-500.0,9.978e-05,2]
[348285031,1736434235808,-500.0,9.978e-05,2]
[348285033,1736434235817,-500.0,9.978e-05,2]
[348285035,1736434235827,-500.0,9.978e-05,2]
[348285037,1736434235836,-500.0,9.978e-05,2]
[348285039,1736434235846,-500.0,9.978e-05,2]
[348285041,1736434235855,-500.0,9.978e-05,2]
[348285043,1736434235864,-500.0,9.978e-05,2]
[348285045,1736434235873,-500.0,9.978e-05,2]
[348285047,1736434235883,-500.0,9.978e-05,2]
[348285049,1736434235892,-500.0,9.978e-05,2]
[348285051,1736434235902,-500.0,9.978e-05,2]
[348285053,1736434235912,-844.63,9.978e-05,2]
[348285055,1736434235922,-500.0,9.978e-05,2]
[348285057,1736434235932,-500.0,9.978e-05,2]
[348285059,1736434235942,-655.99,9.978e-05,2]
[348285061,1736434235951,-500.0,9.978e-05,2]
[348285063,1736434235962,-500.0,9.978e-05,2]
[348285066,1736434235972,-2028.09,9.978e-05,2]
[348285068,1736434235982,-500.2156222,9.978e-05,2]
[348285070,1736434235991,-500.0,9.978e-05,2]
[348285072,1736434236000,-500.0,9.978e-05,2]
[348285074,1736434236010,-500.0,9.978e-05,2]
[348285075,1736434236019,-500.0,9.978e-05,2]
[348285077,1736434236029,-500.0,9.978e-05,2]
[348285079,1736434236038,-500.0,9.978e-05,2]
[348285081,1736434236048,-500.0,9.978e-05,2]
[348285084,1736434236058,-500.0,9.978e-05,2]
[348285085,1736434236067,-500.0,9.978e-05,2]
[348285087,1736434236077,-500.0,9.978e-05,2]
[348285089,1736434236087,-3643.22,9.978e-05,2]
[348285092,1736434236096,-500.0,9.978e-05,2]
[348285094,1736434236106,-500.0,9.978e-05,2]
[348285095,1736434236116,-1268.35,9.978e-05,2]
[348285097,1736434236126,-500.0,9.978e-05,2]
[348285099,1736434236136,-500.0,9.978e-05,2]
[348285101,1736434236149,-500.0,9.978e-05,2]
[348285103,1736434236158,-500.0,9.978e-05,2]
[348285105,1736434236168,-500.0,9.978e-05,2]
[348285107,1736434236178,-500.0,9.978e-05,2]
[348285109,1736434236188,-950.2,9.978e-05,2]
[348285111,1736434236197,-500.0,9.978e-05,2]
[348285113,1736434236207,-500.0,9.978e-05,2]
[348285115,1736434236217,-500.0,9.978e-05,2]
[348285117,1736434236226,-500.0,9.978e-05,2]
[348285119,1736434236238,-500.0,9.978e-05,2]
[348285121,1736434236247,-500.0,9.978e-05,2]
[348285123,1736434236257,-500.0,9.978e-05,2]
[348285124,1736434236266,-500.0,9.978e-05,2]
[348285127,1736434236276,-500.0,9.978e-05,2]
[348285129,1736434236286,-500.0,9.978e-05,2]
[348285130,1736434236295,-500.0,9.978e-05,2]
[348285133,1736434236305,-500.0,9.978e-05,2]
[348285134,1736434236316,-500.0,9.978e-05,2]
[348285136,1736434236326,-500.0,9.978e-05,2]
[348285138,1736434236335,-500.0,9.978e-05,2]
[348285140,1736434236345,-500.0,9.978e-05,2]
[348285142,1736434236354,-500.0,9.978e-05,2]
[348285144,1736434236364,-1770.05,9.978e-05,2]
[348285146,1736434236373,-500.0,9.978e-05,2]
[348285148,1736434236382,-500.0,9.978e-05,2]
[348285150,1736434236392,-2576.13,9.978e-05,2]
[348285152,1736434236403,-500.0,9.978e-05,2]
[348285154,1736434236412,-500.0,9.978e-05,2]
[348285156,1736434236421,-500.0,9.978e-05,2]
[348285158,1736434236430,-500.0,9.978e-05,2]
[348285160,1736434236439,-500.0,9.978e-05,2]
[348285162,1736434236451,-467.59538746,9.978e-05,2]
[348285164,1736434236461,-500.0,9.978e-05,2]
[348285166,1736434236470,-500.0,9.978e-05,2]
[348285168,1736434236480,-500.0,9.978e-05,2]
[348285170,1736434236489,-1182.14,9.978e-05,2]
[348285172,1736434236499,-500.0,9.978e-05,2]
[348285174,1736434236508,-500.0,9.978e-05,2]
[348285176,1736434236517,-500.0,9.978e-05,2]
[348285178,1736434236527,-500.0,9.978e-05,2]
[348285180,1736434236536,-500.0,9.978e-05,2]
[348285182,1736434236547,-827.92,9.978e-05,2]
[348285184,1736434236556,-500.0,9.978e-05,2]
[348285186,1736434236566,-500.0,9.978e-05,2]
[348285188,1736434236575,-500.0,9.978e-05,2]
[348285190,1736434236585,-500.0,9.978e-05,2]
[348285192,1736434236594,-500.0,9.978e-05,2]
[348285194,1736434236604,-500.0,9.978e-05,2]
[348285196,1736434236613,-500.0,9.978e-05,2]
[348285197,1736434236623,-500.0,9.978e-05,2]
[348285199,1736434236633,-1325.97,9.978e-05,2]
[348285201,1736434236643,-500.0,9.978e-05,2]
[348285203,1736434236651,-500.0,9.978e-05,2]
[348285205,1736434236661,-500.0,9.979e-05,2]
[348285206,1736434236671,-500.0,9.979e-05,2]
[348285208,1736434236680,-500.0,9.979e-05,2]
[348285210,1736434236689,-500.0,9.979e-05,2]
[348285212,1736434236698,-500.0,9.979e-05,2]
[348285214,1736434236709,-500.0,9.979e-05,2]
[348285215,1736434236719,-500.0,9.979e-05,2]
[348285217,1736434236728,-500.0,9.979e-05,2]
[348285219,1736434236738,-500.0,9.979e-05,2]
[348285221,1736434236748,-572.75,9.979e-05,2]
[348285223,1736434236757,-500.0,9.979e-05,2]
[348285224,1736434236766,-500.0,9.979e-05,2]
[348285226,1736434236777,-500.0,9.979e-05,2]
[348285228,1736434236786,-500.46465182,9.979e-05,2]
[348285230,1736434236795,-500.0,9.979e-05,2]
[348285231,1736434236805,-500.0,9.979e-05,2]
[348285233,1736434236814,-500.0,9.979e-05,2]
[348285235,1736434236824,-500.0,9.979e-05,2]
[348285237,1736434236834,-500.0,9.979e-05,2]
[348285239,1736434236843,-500.0,9.979e-05,2]
[348285240,1736434236852,-500.0,9.979e-05,2]
[348285242,1736434236862,-500.0,9.979e-05,2]
[348285244,1736434236871,-500.0,9.979e-05,2]
[348285246,1736434236880,-500.0,9.979e-05,2]
[348285248,1736434236890,-500.0,9.979e-05,2]
[348285249,1736434236900,-500.0,9.979e-05,2]
[348285251,1736434236910,-500.0,9.979e-05,2]
[348285253,1736434236920,-500.0,9.979e-05,2]
[348285255,1736434236930,-500.0,9.979e-05,2]
[348285257,1736434236939,-500.0,9.979e-05,2]
[348285259,1736434236950,-500.50137231,9.979e-05,2]
[348285261,1736434236965,-500.20421125,9.979e-05,2]
[348285263,1736434236974,-500.0,9.979e-05,2]
[348285264,1736434236983,-500.0,9.979e-05,2]
[348285280,1736434237159,-500.0,9.979e-05,2]
[348285282,1736434237170,-364.05441234,9.979e-05,2]
[348285284,1736434237179,-500.0,9.979e-05,2]
[348285286,1736434237191,-500.0,9.979e-05,2]
[348285288,1736434237201,-500.45603127,9.979e-05,2]
[348285290,1736434237215,-500.0,9.979e-05,2]
[348285292,1736434237225,-500.0,9.979e-05,2]
[348285293,1736434237235,-500.0,9.979e-05,2]
[348285295,1736434237246,-500.0,9.979e-05,2]
[348285297,1736434237255,-500.0,9.979e-05,2]
[348285299,1736434237265,-500.0,9.979e-05,2]
[348285301,1736434237275,-573.73,9.979e-05,2]
[348285302,1736434237284,-500.0,9.979e-05,2]
[348285304,1736434237293,-500.40833853,9.979e-05,2]
[348285306,1736434237302,-500.0,9.979e-05,2]
[348285308,1736434237311,-500.0,9.979e-05,2]
[348285310,1736434237320,-500.0,9.979e-05,2]
[348285312,1736434237330,-552.19,9.979e-05,2]
[348285314,1736434237339,-500.0,9.979e-05,2]
[348285315,1736434237348,-500.0,9.979e-05,2]
[348285317,1736434237358,-500.0,9.979e-05,2]
[348285319,1736434237367,-500.0,9.979e-05,2]
[348285321,1736434237377,-523.44,9.979e-05,2]
[348285323,1736434237386,-500.0,9.979e-05,2]
[348285325,1736434237395,-500.0,9.979e-05,2]
[348285327,1736434237405,-500.0,9.979e-05,2]
[348285329,1736434237415,-500.0,9.979e-05,2]
[348285331,1736434237425,-500.0,9.979e-05,2]
[348285332,1736434237437,-309.59936592,9.979e-05,2]
[348285334,1736434237446,-500.0,9.979e-05,2]
[348285336,1736434237456,-500.0,9.979e-05,2]
[348285338,1736434237471,-512.13179683,9.979e-05,2]
[348285340,1736434237480,-500.0,9.979e-05,2]
[348285342,1736434237490,-500.0,9.979e-05,2]
[348285344,1736434237499,-500.0,9.979e-05,2]
[348285346,1736434237510,-500.0,9.979e-05,2]
[348285348,1736434237519,-500.0,9.979e-05,2]
[348285350,1736434237528,-500.0,9.979e-05,2]
[348285351,1736434237537,-500.0,9.979e-05,2]
[348285353,1736434237547,-500.0,9.979e-05,2]
[348285355,1736434237556,-500.0,9.979e-05,2]
[348285357,1736434237565,-500.0,9.979e-05,2]
[348285359,1736434237575,-500.0,9.979e-05,2]
[348285361,1736434237585,-500.0,9.979e-05,2]
[348285363,1736434237594,-500.0,9.979e-05,2]
[348285365,1736434237603,-500.0,9.979e-05,2]
[348285367,1736434237613,-500.0,9.979e-05,2]
[348285368,1736434237622,-500.0,9.979e-05,2]
[348285370,1736434237632,-500.0,9.979e-05,2]
[348285372,1736434237642,-500.0,9.979e-05,2]
[348285374,1736434237652,-500.0,9.979e-05,2]
[348285376,1736434237661,-500.0,9.979e-05,2]
[348285378,1736434237670,-500.0,9.979e-05,2]
[348285380,1736434237679,-500.0,9.979e-05,2]
[348285382,1736434237688,-500.0,9.979e-05,2]
[348285383,1736434237698,-500.0,9.979e-05,2]
[348285385,1736434237710,-500.0,9.979e-05,2]
[348285387,1736434237720,-695.38,9.979e-05,2]
[348285389,1736434237730,-500.0,9.979e-05,2]
[348285391,1736434237739,-500.0,9.979e-05,2]
[348285393,1736434237748,-500.0,9.979e-05,2]
[348285394,1736434237758,-500.26568098,9.979e-05,2]
[348285395,1736434237767,-500.0,9.979e-05,2]
[348285396,1736434237777,-500.0,9.979e-05,2]
[348285397,1736434237787,-500.0,9.979e-05,2]
[348285398,1736434237797,-500.0,9.979e-05,2]
[348285399,1736434237807,-500.0,9.979e-05,2]
[348285400,1736434237816,-695.4,9.979e-05,2]
[348285401,1736434237826,-500.0,9.979e-05,2]
[348285402,1736434237835,-500.0,9.979e-05,2]
[348285403,1736434237845,-500.0,9.979e-05,2]
[348285405,1736434237855,-500.0,9.979e-05,2]
[348285406,1736434237864,-500.0,9.979e-05,2]
[348285408,1736434237873,-500.0,9.979e-05,2]
[348285410,1736434237883,-500.0,9.979e-05,2]
[348285412,1736434237892,-887.788681,9.979e-05,2]